[Event "Early-Titled-Tuesday-Blitz-March-19-2024"]
[Site "Chess.com"]
[Date "2024.03.19"]
[Round "6"]
[White "balack95"]
[Black "Saxar85"]
[Result "0-1"]
[WhiteElo "2468"]
[BlackElo "2727"]
[TimeControl "180+1"]
[EndTime "9:07:50 PDT"]
[Termination "Saxar85 won by resignation"]

1. d4 {[%clk 0:03:00.9]} 1... Nf6 {[%clk 0:02:59.1]} 2. c4 {[%clk 0:03:01.4]}
2... e6 {[%clk 0:02:58.7]} 3. Nc3 {[%clk 0:03:01.9]} 3... Bb4 {[%clk 0:02:57.8]}
4. f3 {[%clk 0:03:02.4]} 4... O-O {[%clk 0:02:45.3]} 5. e4 {[%clk 0:03:01.5]}
5... d5 {[%clk 0:02:42.9]} 6. cxd5 {[%clk 0:03:01.2]} 6... exd5 {[%clk
0:02:42.7]} 7. e5 {[%clk 0:03:01.7]} 7... Nfd7 {[%clk 0:02:42.4]} 8. a3 {[%clk
0:02:54.6]} 8... Bxc3+ {[%clk 0:02:28.2]} 9. bxc3 {[%clk 0:02:55.5]} 9... c5
{[%clk 0:02:28]} 10. Bd3 {[%clk 0:02:45.3]} 10... f6 {[%clk 0:01:58.7]} 11. f4
{[%clk 0:02:36.5]} 11... fxe5 {[%clk 0:01:51.5]} 12. dxe5 {[%clk 0:02:31.8]}
12... Nc6 {[%clk 0:01:34.4]} 13. Nf3 {[%clk 0:02:31]} 13... Nb6 {[%clk
0:01:31.4]} 14. O-O {[%clk 0:02:17.9]} 14... Bf5 {[%clk 0:01:27.2]} 15. a4
{[%clk 0:02:09]} 15... Qd7 {[%clk 0:01:10.5]} 16. a5 {[%clk 0:01:55.2]} 16...
Bxd3 {[%clk 0:00:55.3]} 17. Qxd3 {[%clk 0:01:55.2]} 17... Nc4 {[%clk 0:00:55.4]}
18. a6 {[%clk 0:01:47.8]} 18... b6 {[%clk 0:00:46.4]} 19. Ng5 {[%clk 0:01:37.3]}
19... g6 {[%clk 0:00:40.2]} 20. Rd1 {[%clk 0:01:27.6]} 20... Rad8 {[%clk
0:00:36.3]} 21. e6 {[%clk 0:01:16.2]} 21... Qe7 {[%clk 0:00:35.9]} 22. Qf3
{[%clk 0:01:10.2]} 22... h6 {[%clk 0:00:26]} 23. Nf7 {[%clk 0:01:10.1]} 23...
Qxe6 {[%clk 0:00:24.1]} 24. Nxd8 {[%clk 0:00:56.2]} 24... Rxd8 {[%clk
0:00:23.8]} 25. f5 {[%clk 0:00:57.1]} 25... Qxf5 {[%clk 0:00:23.4]} 26. Qxf5
{[%clk 0:00:57]} 26... gxf5 {[%clk 0:00:23.6]} 27. Bxh6 {[%clk 0:00:57.6]} 27...
Kf7 {[%clk 0:00:23.1]} 28. Bg5 {[%clk 0:00:55.4]} 28... Rd7 {[%clk 0:00:22.5]}
29. h4 {[%clk 0:00:55]} 29... N4e5 {[%clk 0:00:21.3]} 30. Rf1 {[%clk 0:00:39.9]}
30... Kg6 {[%clk 0:00:20.4]} 31. Ra4 {[%clk 0:00:40.2]} 31... c4 {[%clk
0:00:20.2]} 32. Re1 {[%clk 0:00:38.4]} 32... d4 {[%clk 0:00:15.1]} 33. cxd4
{[%clk 0:00:38.3]} 33... Rxd4 {[%clk 0:00:15.2]} 34. Be3 {[%clk 0:00:36.9]}
34... Re4 {[%clk 0:00:14.3]} 35. Bf2 {[%clk 0:00:32.3]} 35... b5 {[%clk
0:00:12.3]} 36. Raa1 {[%clk 0:00:20.8]} 36... c3 {[%clk 0:00:11.9]} 37. Red1
{[%clk 0:00:20.1]} 37... b4 {[%clk 0:00:11.6]} 38. Rd6+ {[%clk 0:00:19.9]} 38...
Kh5 {[%clk 0:00:11]} 39. Rb1 {[%clk 0:00:09.3]} 39... c2 {[%clk 0:00:10.1]} 40.
Rc1 {[%clk 0:00:09.5]} 40... b3 {[%clk 0:00:09.8]} 41. Rd2 {[%clk 0:00:09.3]}
41... Rc4 {[%clk 0:00:08.6]} 42. Be3 {[%clk 0:00:05.2]} 42... b2 {[%clk
0:00:08.5]} 43. Rd6 {[%clk 0:00:05.4]} 43... bxc1=Q+ {[%clk 0:00:06.7]} 44. Bxc1
{[%clk 0:00:06.3]} 44... Rb4 {[%clk 0:00:06.7]} 45. Kh2 {[%clk 0:00:06.2]} 45...
Rb1 {[%clk 0:00:06.7]} 46. Bg5 {[%clk 0:00:06.3]} 46... Ng6 {[%clk 0:00:05.3]}
47. Kh3 {[%clk 0:00:06]} 47... c1=Q {[%clk 0:00:04.5]} 48. Bxc1 {[%clk
0:00:05.6]} 48... Rxc1 {[%clk 0:00:04.8]} 49. Rd5 {[%clk 0:00:04.8]} 49... Rc3+
{[%clk 0:00:04.7]} 50. g3 {[%clk 0:00:04.8]} 50... Nf4+ {[%clk 0:00:04.4]} 0-1

[Event "Early-Titled-Tuesday-Blitz-March-19-2024"]
[Site "Chess.com"]
[Date "2024.03.19"]
[Round "6"]
[White "Kildepiotr"]
[Black "Chernov_Alexander_A"]
[Result "1-0"]
[WhiteElo "2685"]
[BlackElo "2305"]
[TimeControl "180+1"]
[EndTime "9:07:51 PDT"]
[Termination "Kildepiotr won on time"]

1. Nf3 {[%clk 0:03:00.9]} 1... d5 {[%clk 0:02:55.6]} 2. g3 {[%clk 0:03:00.6]}
2... c6 {[%clk 0:02:54.9]} 3. Bg2 {[%clk 0:03:00.6]} 3... Bg4 {[%clk 0:02:53.7]}
4. O-O {[%clk 0:03:00.5]} 4... Nd7 {[%clk 0:02:52.6]} 5. d3 {[%clk 0:03:00.5]}
5... e5 {[%clk 0:02:51.8]} 6. Nbd2 {[%clk 0:03:00.6]} 6... Ngf6 {[%clk
0:02:50.9]} 7. e4 {[%clk 0:03:00.7]} 7... dxe4 {[%clk 0:02:50.9]} 8. dxe4 {[%clk
0:03:01.6]} 8... Qc7 {[%clk 0:02:50.8]} 9. h3 {[%clk 0:03:01.7]} 9... Bh5 {[%clk
0:02:50.3]} 10. Qe1 {[%clk 0:03:01.5]} 10... Be7 {[%clk 0:02:47.7]} 11. a4
{[%clk 0:03:01.1]} 11... a5 {[%clk 0:02:46.5]} 12. Nc4 {[%clk 0:03:00.9]} 12...
O-O {[%clk 0:02:45.2]} 13. Nh4 {[%clk 0:03:00.7]} 13... Rfe8 {[%clk 0:02:44.6]}
14. Nf5 {[%clk 0:03:00.4]} 14... Bf8 {[%clk 0:02:44.5]} 15. g4 {[%clk
0:02:58.4]} 15... Bg6 {[%clk 0:02:43.8]} 16. Ng3 {[%clk 0:02:59]} 16... Nc5
{[%clk 0:02:43.1]} 17. Qe2 {[%clk 0:02:57]} 17... Ne6 {[%clk 0:02:32.9]} 18. c3
{[%clk 0:02:56.5]} 18... Nf4 {[%clk 0:02:27]} 19. Qf3 {[%clk 0:02:56.2]} 19...
Nd7 {[%clk 0:02:22.2]} 20. Rd1 {[%clk 0:02:49.7]} 20... Nc5 {[%clk 0:02:19.5]}
21. Be3 {[%clk 0:02:42.8]} 21... Nce6 {[%clk 0:02:19.1]} 22. h4 {[%clk
0:02:40.6]} 22... h6 {[%clk 0:02:12.5]} 23. Bb6 {[%clk 0:02:35.4]} 23... Qb8
{[%clk 0:02:10.4]} 24. Bf1 {[%clk 0:02:12.6]} 24... f6 {[%clk 0:02:04.6]} 25.
Nf5 {[%clk 0:02:09.1]} 25... h5 {[%clk 0:01:55.7]} 26. Ncd6 {[%clk 0:02:03.2]}
26... hxg4 {[%clk 0:01:47.4]} 27. Qg3 {[%clk 0:02:00.8]} 27... Bxf5 {[%clk
0:01:18]} 28. Nxf5 {[%clk 0:01:56.9]} 28... Bc5 {[%clk 0:01:14.2]} 29. Bxc5
{[%clk 0:01:52.3]} 29... Nxc5 {[%clk 0:01:14]} 30. Qxg4 {[%clk 0:01:52.1]} 30...
Qc7 {[%clk 0:01:05.3]} 31. Bc4+ {[%clk 0:01:42.7]} 31... Kh7 {[%clk 0:01:05]}
32. Kh2 {[%clk 0:01:39.7]} 32... Rad8 {[%clk 0:00:56.6]} 33. Rxd8 {[%clk
0:01:36.6]} 33... Rxd8 {[%clk 0:00:56.5]} 34. Rg1 {[%clk 0:01:36.4]} 34... g6
{[%clk 0:00:50.4]} 35. h5 {[%clk 0:01:25.6]} 35... g5 {[%clk 0:00:42.6]} 36. Rd1
{[%clk 0:01:18.2]} 36... Rxd1 {[%clk 0:00:39.6]} 37. Qxd1 {[%clk 0:01:19.1]}
37... Qd7 {[%clk 0:00:38]} 38. Qxd7+ {[%clk 0:01:16.9]} 38... Nxd7 {[%clk
0:00:38]} 39. Nd6 {[%clk 0:01:16.6]} 39... Nc5 {[%clk 0:00:37.9]} 40. b4 {[%clk
0:01:07]} 40... axb4 {[%clk 0:00:33.6]} 41. cxb4 {[%clk 0:01:07.9]} 41... Nxa4
{[%clk 0:00:32.9]} 42. Nxb7 {[%clk 0:01:07.3]} 42... Nxh5 {[%clk 0:00:30.3]} 43.
Nd8 {[%clk 0:01:05.7]} 43... c5 {[%clk 0:00:28.4]} 44. Bb3 {[%clk 0:01:04.1]}
44... Nb6 {[%clk 0:00:15.7]} 45. bxc5 {[%clk 0:01:03.8]} 45... Nc8 {[%clk
0:00:15.1]} 46. c6 {[%clk 0:00:59.8]} 46... Ne7 {[%clk 0:00:13.9]} 47. c7 {[%clk
0:00:59]} 47... Nf4 {[%clk 0:00:13.1]} 48. Nc6 {[%clk 0:00:53]} 48... Nc8 {[%clk
0:00:12.2]} 49. Bc4 {[%clk 0:00:52.6]} 49... Nb6 {[%clk 0:00:10.5]} 50. Ne7
{[%clk 0:00:42.8]} 50... Kg7 {[%clk 0:00:09.6]} 51. c8=Q {[%clk 0:00:40.8]}
51... Nxc8 {[%clk 0:00:09.5]} 52. Nxc8 {[%clk 0:00:40.9]} 52... Ng6 {[%clk
0:00:05.8]} 53. Nd6 {[%clk 0:00:40]} 53... Nf4 {[%clk 0:00:05.4]} 54. Nf5+
{[%clk 0:00:39.4]} 54... Kg6 {[%clk 0:00:05.2]} 55. Kg3 {[%clk 0:00:39.4]} 55...
Nh5+ {[%clk 0:00:05.1]} 56. Kg4 {[%clk 0:00:39.4]} 56... Nf4 {[%clk 0:00:05.1]}
57. Ne7+ {[%clk 0:00:37.3]} 57... Kg7 {[%clk 0:00:04.6]} 58. Kf5 {[%clk
0:00:37.3]} 58... Nh3 {[%clk 0:00:04.3]} 59. f3 {[%clk 0:00:36.9]} 59... Ng1
{[%clk 0:00:03]} 60. Kg4 {[%clk 0:00:36.7]} 1-0

[Event "Early-Titled-Tuesday-Blitz-March-19-2024"]
[Site "Chess.com"]
[Date "2024.03.19"]
[Round "6"]
[White "jraosam"]
[Black "Muslim_player_05"]
[Result "0-1"]
[WhiteElo "2009"]
[BlackElo "2493"]
[TimeControl "180+1"]
[EndTime "9:07:53 PDT"]
[Termination "Muslim_player_05 won by resignation"]

1. Nf3 {[%clk 0:02:57.1]} 1... Nf6 {[%clk 0:03:00.1]} 2. c4 {[%clk 0:02:57.6]}
2... g6 {[%clk 0:03:00.1]} 3. b3 {[%clk 0:02:58.1]} 3... Bg7 {[%clk 0:03:00.8]}
4. Bb2 {[%clk 0:02:58.7]} 4... O-O {[%clk 0:02:57.1]} 5. e3 {[%clk 0:02:58.6]}
5... c5 {[%clk 0:02:53.6]} 6. Be2 {[%clk 0:02:57.9]} 6... Nc6 {[%clk 0:02:50.9]}
7. O-O {[%clk 0:02:56.9]} 7... d5 {[%clk 0:02:50.7]} 8. cxd5 {[%clk 0:02:56.7]}
8... Qxd5 {[%clk 0:02:51.3]} 9. Nc3 {[%clk 0:02:55.4]} 9... Qd7 {[%clk
0:02:50.7]} 10. Na4 {[%clk 0:02:55.3]} 10... b6 {[%clk 0:02:50.7]} 11. d4 {[%clk
0:02:53.6]} 11... cxd4 {[%clk 0:02:46.4]} 12. Nxd4 {[%clk 0:02:53.7]} 12... Nxd4
{[%clk 0:02:38.5]} 13. Qxd4 {[%clk 0:02:52.7]} 13... Qxd4 {[%clk 0:02:35.6]} 14.
Bxd4 {[%clk 0:02:53.6]} 14... Bb7 {[%clk 0:02:35.5]} 15. Rac1 {[%clk 0:02:53]}
15... Rac8 {[%clk 0:02:35.5]} 16. Nc3 {[%clk 0:02:52.9]} 16... a6 {[%clk
0:02:17.2]} 17. Bxb6 {[%clk 0:02:37.7]} 17... Rxc3 {[%clk 0:02:16.7]} 18. Rxc3
{[%clk 0:02:36.4]} 18... Nd5 {[%clk 0:02:17.3]} 19. Rc7 {[%clk 0:02:34.6]} 19...
Nxc7 {[%clk 0:02:04.7]} 20. Bxc7 {[%clk 0:02:33.7]} 20... Rc8 {[%clk 0:02:05.3]}
21. Bb6 {[%clk 0:02:23.8]} 21... Rc2 {[%clk 0:02:05.2]} 22. Bd3 {[%clk
0:02:21.6]} 22... Rxa2 {[%clk 0:02:04.5]} 23. Rc1 {[%clk 0:02:20.3]} 23... Be5
{[%clk 0:02:02.5]} 24. Bc7 {[%clk 0:02:00.1]} 24... Bb2 {[%clk 0:01:21.4]} 25.
Rd1 {[%clk 0:01:55.2]} 25... Bd5 {[%clk 0:01:14.2]} 26. Bb1 {[%clk 0:01:30.5]}
26... Ra1 {[%clk 0:01:13.2]} 27. Bc2 {[%clk 0:01:30.4]} 27... Rxd1+ {[%clk
0:01:05.9]} 28. Bxd1 {[%clk 0:01:31.3]} 28... Bc3 {[%clk 0:01:02.3]} 29. f3
{[%clk 0:01:24.7]} 29... f5 {[%clk 0:01:02.5]} 30. Kf2 {[%clk 0:01:21.9]} 30...
Kf7 {[%clk 0:01:02.8]} 31. Ke2 {[%clk 0:01:21.8]} 31... Ke6 {[%clk 0:01:00.8]}
32. Kd3 {[%clk 0:01:22]} 32... Bb4 {[%clk 0:01:01.1]} 33. e4 {[%clk 0:01:16.3]}
33... Bc6 {[%clk 0:00:47.5]} 34. Kc4 {[%clk 0:01:14.3]} 34... a5 {[%clk
0:00:40]} 35. exf5+ {[%clk 0:01:11.7]} 35... gxf5 {[%clk 0:00:39.7]} 36. Bc2
{[%clk 0:01:06.6]} 36... h5 {[%clk 0:00:31.9]} 37. Bf4 {[%clk 0:00:51.6]} 37...
h4 {[%clk 0:00:30.2]} 38. h3 {[%clk 0:00:47.8]} 38... Be1 {[%clk 0:00:29.2]} 39.
Kc5 {[%clk 0:00:37.5]} 39... Bd7 {[%clk 0:00:24.1]} 40. Bg5 {[%clk 0:00:34.7]}
40... Kf7 {[%clk 0:00:21.7]} 41. Kb6 {[%clk 0:00:28.2]} 41... e5 {[%clk
0:00:19.5]} 42. Kc7 {[%clk 0:00:28.1]} 42... Ke6 {[%clk 0:00:16.6]} 43. Be3
{[%clk 0:00:21.7]} 43... Bb5 {[%clk 0:00:15.7]} 44. Kb6 {[%clk 0:00:20.5]} 44...
Bf1 {[%clk 0:00:15.7]} 45. g4 {[%clk 0:00:05.7]} 45... hxg3 {[%clk 0:00:14.8]}
46. h4 {[%clk 0:00:05]} 46... Bf2 {[%clk 0:00:14.2]} 47. Bxf2 {[%clk 0:00:04.3]}
47... gxf2 {[%clk 0:00:15.1]} 48. h5 {[%clk 0:00:05]} 48... Be2 {[%clk 0:00:13]}
0-1

[Event "Early-Titled-Tuesday-Blitz-March-19-2024"]
[Site "Chess.com"]
[Date "2024.03.19"]
[Round "6"]
[White "kingofthenil"]
[Black "KuzubovYuriy"]
[Result "0-1"]
[WhiteElo "2791"]
[BlackElo "2913"]
[TimeControl "180+1"]
[EndTime "9:07:55 PDT"]
[Termination "KuzubovYuriy won by checkmate"]

1. Nf3 {[%clk 0:03:00.9]} 1... d5 {[%clk 0:02:59.6]} 2. e3 {[%clk 0:03:01.2]}
2... e6 {[%clk 0:02:55.1]} 3. c4 {[%clk 0:03:01.7]} 3... Nf6 {[%clk 0:02:54.2]}
4. b3 {[%clk 0:03:02]} 4... c5 {[%clk 0:02:54.2]} 5. Bb2 {[%clk 0:03:01.8]} 5...
Nc6 {[%clk 0:02:53.3]} 6. cxd5 {[%clk 0:03:02]} 6... exd5 {[%clk 0:02:53.5]} 7.
Be2 {[%clk 0:03:02.7]} 7... Bd6 {[%clk 0:02:48.7]} 8. O-O {[%clk 0:03:01.2]}
8... O-O {[%clk 0:02:48.7]} 9. d4 {[%clk 0:03:01]} 9... cxd4 {[%clk 0:02:48.8]}
10. Nxd4 {[%clk 0:03:01.9]} 10... a6 {[%clk 0:02:47.5]} 11. Nd2 {[%clk
0:02:56.5]} 11... Qe7 {[%clk 0:02:47.6]} 12. Nxc6 {[%clk 0:02:36.4]} 12... bxc6
{[%clk 0:02:46.7]} 13. Qc2 {[%clk 0:02:36.8]} 13... Bd7 {[%clk 0:02:45.1]} 14.
h3 {[%clk 0:02:37.1]} 14... a5 {[%clk 0:02:40.5]} 15. Bd3 {[%clk 0:02:36.9]}
15... h6 {[%clk 0:02:18.6]} 16. Rfe1 {[%clk 0:02:37.1]} 16... Rfe8 {[%clk
0:02:14.8]} 17. e4 {[%clk 0:02:34.4]} 17... Nh5 {[%clk 0:01:54.1]} 18. Nf3
{[%clk 0:02:27.8]} 18... Bb4 {[%clk 0:01:42.7]} 19. exd5 {[%clk 0:01:53.6]}
19... Bxe1 {[%clk 0:01:42.1]} 20. Rxe1 {[%clk 0:01:54.5]} 20... Qd6 {[%clk
0:01:24.6]} 21. Bh7+ {[%clk 0:01:37.4]} 21... Kh8 {[%clk 0:01:22]} 22. Ne5
{[%clk 0:01:38.3]} 22... Re7 {[%clk 0:00:56.8]} 23. Re3 {[%clk 0:00:54.8]} 23...
cxd5 {[%clk 0:00:54.3]} 24. Bf5 {[%clk 0:00:22.9]} 24... d4 {[%clk 0:00:46.6]}
25. Nc4 {[%clk 0:00:06.3]} 25... Qb4 {[%clk 0:00:22.1]} 26. Bxd4 {[%clk
0:00:04.7]} 26... Rxe3 {[%clk 0:00:20.4]} 27. Bxe3 {[%clk 0:00:04.4]} 27... Bxf5
{[%clk 0:00:18.9]} 28. Qxf5 {[%clk 0:00:05.3]} 28... Nf6 {[%clk 0:00:17.5]} 29.
Bxh6 {[%clk 0:00:05.7]} 29... Qe1+ {[%clk 0:00:16.4]} 30. Kh2 {[%clk 0:00:05.9]}
30... Qe6 {[%clk 0:00:15.8]} 31. Qxe6 {[%clk 0:00:03.6]} 31... fxe6 {[%clk
0:00:16.7]} 32. Bd2 {[%clk 0:00:03.6]} 32... a4 {[%clk 0:00:17.1]} 33. Nb6
{[%clk 0:00:03.8]} 33... axb3 {[%clk 0:00:16.4]} 34. axb3 {[%clk 0:00:02.7]}
34... Rb8 {[%clk 0:00:16.6]} 35. Be3 {[%clk 0:00:01.3]} 35... Nd5 {[%clk
0:00:16.6]} 36. Nxd5 {[%clk 0:00:01.7]} 36... exd5 {[%clk 0:00:17.5]} 37. Kg3
{[%clk 0:00:01.7]} 37... Rb4 {[%clk 0:00:15.1]} 38. Kf3 {[%clk 0:00:01.9]} 38...
Kg8 {[%clk 0:00:15]} 39. Ke2 {[%clk 0:00:01.4]} 39... Rxb3 {[%clk 0:00:14.9]}
40. Kf3 {[%clk 0:00:01.2]} 40... Kf7 {[%clk 0:00:14]} 41. Kf4 {[%clk 0:00:01.5]}
41... Ke6 {[%clk 0:00:13.7]} 42. g4 {[%clk 0:00:02]} 42... Rb4+ {[%clk
0:00:13.3]} 43. Kf3 {[%clk 0:00:02.3]} 43... d4 {[%clk 0:00:13.6]} 44. Bd2
{[%clk 0:00:02.5]} 44... Rb2 {[%clk 0:00:12.7]} 45. Ke2 {[%clk 0:00:03]} 45...
Kd5 {[%clk 0:00:12.3]} 46. h4 {[%clk 0:00:03.2]} 46... Kc4 {[%clk 0:00:10.9]}
47. h5 {[%clk 0:00:03.7]} 47... Rb8 {[%clk 0:00:09.2]} 48. h6 {[%clk 0:00:03.8]}
48... Re8+ {[%clk 0:00:08.6]} 49. Kf3 {[%clk 0:00:03.8]} 49... Rf8+ {[%clk
0:00:08.6]} 50. Kg3 {[%clk 0:00:03.6]} 50... gxh6 {[%clk 0:00:08.2]} 51. Bxh6
{[%clk 0:00:04.5]} 51... d3 {[%clk 0:00:08.6]} 52. Be3 {[%clk 0:00:02.4]} 52...
Re8 {[%clk 0:00:08.3]} 53. Bg5 {[%clk 0:00:02.8]} 53... Kc3 {[%clk 0:00:07.5]}
54. Kf3 {[%clk 0:00:02.6]} 54... Rf8+ {[%clk 0:00:06.8]} 55. Ke3 {[%clk
0:00:02.6]} 55... d2 {[%clk 0:00:06.7]} 56. Ke2 {[%clk 0:00:02.2]} 56... Re8+
{[%clk 0:00:07.1]} 57. Kd1 {[%clk 0:00:02.6]} 57... Re1# {[%clk 0:00:06.8]} 0-1

[Event "Early-Titled-Tuesday-Blitz-March-19-2024"]
[Site "Chess.com"]
[Date "2024.03.19"]
[Round "6"]
[White "KhazhatulyAlikhan"]
[Black "angelgab3"]
[Result "1-0"]
[WhiteElo "2466"]
[BlackElo "2652"]
[TimeControl "180+1"]
[EndTime "9:07:55 PDT"]
[Termination "KhazhatulyAlikhan won by resignation"]

1. e4 {[%clk 0:03:00]} 1... e5 {[%clk 0:02:57.1]} 2. Nf3 {[%clk 0:02:59.8]} 2...
Nc6 {[%clk 0:02:56.6]} 3. Nc3 {[%clk 0:02:59.4]} 3... Nf6 {[%clk 0:02:56.4]} 4.
Bb5 {[%clk 0:02:59.4]} 4... Nd4 {[%clk 0:02:55]} 5. Bc4 {[%clk 0:02:59.7]} 5...
Bd6 {[%clk 0:02:52]} 6. O-O {[%clk 0:02:51]} 6... O-O {[%clk 0:02:51]} 7. d3
{[%clk 0:02:50.5]} 7... Nxf3+ {[%clk 0:02:46.1]} 8. Qxf3 {[%clk 0:02:50.5]} 8...
c6 {[%clk 0:02:47]} 9. Bg5 {[%clk 0:02:48.1]} 9... Be7 {[%clk 0:02:47]} 10. Rae1
{[%clk 0:02:20.8]} 10... d6 {[%clk 0:02:42.4]} 11. h3 {[%clk 0:02:13.4]} 11...
Be6 {[%clk 0:02:42.3]} 12. Bb3 {[%clk 0:02:13]} 12... g6 {[%clk 0:02:32.9]} 13.
Bh6 {[%clk 0:02:11.7]} 13... Re8 {[%clk 0:02:32.1]} 14. Qe3 {[%clk 0:02:07.7]}
14... Nh5 {[%clk 0:02:31.4]} 15. f4 {[%clk 0:02:01.6]} 15... exf4 {[%clk
0:02:27.7]} 16. Bxf4 {[%clk 0:02:02.5]} 16... Nxf4 {[%clk 0:02:28.6]} 17. Qxf4
{[%clk 0:01:59.6]} 17... Bg5 {[%clk 0:02:17.6]} 18. Qf3 {[%clk 0:01:55.8]} 18...
Qe7 {[%clk 0:02:14.7]} 19. Re2 {[%clk 0:01:45.6]} 19... Bh6 {[%clk 0:02:10.6]}
20. Ref2 {[%clk 0:01:45.2]} 20... Bg7 {[%clk 0:01:59.7]} 21. Bxe6 {[%clk
0:01:35.4]} 21... fxe6 {[%clk 0:02:00.6]} 22. Qf7+ {[%clk 0:01:35.4]} 22... Kh8
{[%clk 0:01:59.4]} 23. Qxe7 {[%clk 0:01:35.2]} 23... Rxe7 {[%clk 0:02:00.3]} 24.
Rf7 {[%clk 0:01:36.1]} 24... Rae8 {[%clk 0:01:56.2]} 25. Rxe7 {[%clk 0:00:54.4]}
25... Rxe7 {[%clk 0:01:57.1]} 26. Nd1 {[%clk 0:00:55.3]} 26... b5 {[%clk
0:01:51.4]} 27. Rf3 {[%clk 0:00:52.4]} 27... a5 {[%clk 0:01:48.9]} 28. Kf1
{[%clk 0:00:52.4]} 28... a4 {[%clk 0:01:46.7]} 29. b3 {[%clk 0:00:51.9]} 29...
axb3 {[%clk 0:01:46.2]} 30. axb3 {[%clk 0:00:52.8]} 30... Ra7 {[%clk 0:01:46.7]}
31. Ke2 {[%clk 0:00:53.2]} 31... b4 {[%clk 0:01:30.3]} 32. Ne3 {[%clk
0:00:41.5]} 32... Bd4 {[%clk 0:01:25.3]} 33. Rf8+ {[%clk 0:00:35]} 33... Kg7
{[%clk 0:01:19.3]} 34. Rd8 {[%clk 0:00:24.4]} 34... d5 {[%clk 0:01:07.2]} 35.
Rd6 {[%clk 0:00:22.1]} 35... Kf6 {[%clk 0:00:33.8]} 36. Rxc6 {[%clk 0:00:20.3]}
36... dxe4 {[%clk 0:00:30.6]} 37. dxe4 {[%clk 0:00:21.2]} 37... h5 {[%clk
0:00:28.8]} 38. Kd3 {[%clk 0:00:17.9]} 38... Rd7 {[%clk 0:00:25.9]} 39. Ke2
{[%clk 0:00:14.3]} 39... Bc3 {[%clk 0:00:23.4]} 40. Nd5+ {[%clk 0:00:12.4]}
40... Ke5 {[%clk 0:00:23.7]} 41. Nxc3 {[%clk 0:00:12.5]} 41... bxc3 {[%clk
0:00:24.6]} 42. Rxc3 {[%clk 0:00:12.8]} 42... Kxe4 {[%clk 0:00:25.5]} 43. Rc4+
{[%clk 0:00:06.9]} 43... Kd5 {[%clk 0:00:20.9]} 44. Ra4 {[%clk 0:00:05.3]} 44...
Rc7 {[%clk 0:00:20.5]} 45. Kd3 {[%clk 0:00:05.3]} 45... Rf7 {[%clk 0:00:20.1]}
46. Ra5+ {[%clk 0:00:05.8]} 46... Kd6 {[%clk 0:00:19.8]} 47. Rg5 {[%clk
0:00:06.5]} 47... Rf6 {[%clk 0:00:18.2]} 48. b4 {[%clk 0:00:07.2]} 48... Ke7
{[%clk 0:00:15.8]} 49. b5 {[%clk 0:00:07.6]} 49... Kf7 {[%clk 0:00:16.7]} 50. b6
{[%clk 0:00:06.7]} 50... Rf1 {[%clk 0:00:17.1]} 51. Rb5 {[%clk 0:00:05.7]} 51...
Rd1+ {[%clk 0:00:17.3]} 52. Ke4 {[%clk 0:00:04.1]} 1-0

[Event "Early-Titled-Tuesday-Blitz-March-19-2024"]
[Site "Chess.com"]
[Date "2024.03.19"]
[Round "6"]
[White "UK_23"]
[Black "wannabe2700"]
[Result "1-0"]
[WhiteElo "2402"]
[BlackElo "2621"]
[TimeControl "180+1"]
[EndTime "9:07:56 PDT"]
[Termination "UK_23 won by resignation"]

1. e4 {[%clk 0:02:58.6]} 1... d5 {[%clk 0:02:59.9]} 2. exd5 {[%clk 0:02:56]}
2... Qxd5 {[%clk 0:03:00.8]} 3. h3 {[%clk 0:02:43.8]} 3... c5 {[%clk 0:02:59.7]}
4. Nc3 {[%clk 0:02:41.5]} 4... Qd8 {[%clk 0:02:58.6]} 5. Nf3 {[%clk 0:02:39.1]}
5... Nf6 {[%clk 0:02:57.7]} 6. d4 {[%clk 0:02:37.4]} 6... cxd4 {[%clk
0:02:58.6]} 7. Qxd4 {[%clk 0:02:27]} 7... Qxd4 {[%clk 0:02:58.2]} 8. Nxd4 {[%clk
0:02:27.9]} 8... a6 {[%clk 0:02:58.5]} 9. g3 {[%clk 0:02:27]} 9... e5 {[%clk
0:02:55.9]} 10. Nb3 {[%clk 0:02:24.7]} 10... Bd7 {[%clk 0:02:51.6]} 11. Bg2
{[%clk 0:02:05.5]} 11... Nc6 {[%clk 0:02:47.3]} 12. Be3 {[%clk 0:01:58.5]} 12...
O-O-O {[%clk 0:02:39.9]} 13. Bb6 {[%clk 0:01:54.2]} 13... Re8 {[%clk 0:02:39.9]}
14. O-O-O {[%clk 0:01:54.1]} 14... Be7 {[%clk 0:02:32]} 15. Nc5 {[%clk 0:01:52]}
15... Bxc5 {[%clk 0:02:20]} 16. Bxc5 {[%clk 0:01:52.3]} 16... h5 {[%clk
0:02:15]} 17. Rd2 {[%clk 0:01:47.3]} 17... Bf5 {[%clk 0:02:14.7]} 18. Rhd1
{[%clk 0:01:45.5]} 18... Rd8 {[%clk 0:02:14.9]} 19. Bb6 {[%clk 0:01:39]} 19...
Rxd2 {[%clk 0:02:14.4]} 20. Rxd2 {[%clk 0:01:39.9]} 20... Nd7 {[%clk 0:02:12.6]}
21. Be3 {[%clk 0:01:38]} 21... Nf6 {[%clk 0:02:11.2]} 22. Bb6 {[%clk 0:01:27.7]}
22... Re8 {[%clk 0:02:10.1]} 23. a3 {[%clk 0:01:12.6]} 23... Nd7 {[%clk
0:01:58.7]} 24. Be3 {[%clk 0:01:09.8]} 24... Be6 {[%clk 0:01:52.1]} 25. Nd5
{[%clk 0:01:03.8]} 25... Rd8 {[%clk 0:01:30.5]} 26. Nb6+ {[%clk 0:00:57.3]}
26... Nxb6 {[%clk 0:01:30.5]} 27. Bxb6 {[%clk 0:00:44.9]} 27... Rxd2 {[%clk
0:01:29.5]} 28. Kxd2 {[%clk 0:00:45.8]} 28... Kd7 {[%clk 0:01:28.3]} 29. Kd3
{[%clk 0:00:39.3]} 29... Kd6 {[%clk 0:01:27.6]} 30. b4 {[%clk 0:00:38.6]} 30...
f5 {[%clk 0:01:14.2]} 31. Bc5+ {[%clk 0:00:38.4]} 31... Kc7 {[%clk 0:01:13.8]}
32. Bxc6 {[%clk 0:00:35.1]} 32... Kxc6 {[%clk 0:01:13.5]} 33. h4 {[%clk
0:00:36]} 33... Kd5 {[%clk 0:00:34.5]} 34. Bf8 {[%clk 0:00:35.7]} 34... g6
{[%clk 0:00:31]} 35. c4+ {[%clk 0:00:35.7]} 35... Kc6 {[%clk 0:00:31]} 36. Bg7
{[%clk 0:00:34.8]} 36... Kd6 {[%clk 0:00:30.5]} 37. Bf8+ {[%clk 0:00:34.8]}
37... Kd7 {[%clk 0:00:30.6]} 38. Bg7 {[%clk 0:00:34.3]} 38... e4+ {[%clk
0:00:27.8]} 39. Kd4 {[%clk 0:00:34.4]} 39... Kd6 {[%clk 0:00:26.6]} 40. Bf8+
{[%clk 0:00:34.2]} 40... Kc6 {[%clk 0:00:26.5]} 41. Be7 {[%clk 0:00:33.3]} 41...
Bf7 {[%clk 0:00:25.3]} 42. Bf8 {[%clk 0:00:33.3]} 42... Kd7 {[%clk 0:00:25]} 43.
Bg7 {[%clk 0:00:28.4]} 43... Ke7 {[%clk 0:00:23.6]} 44. Be5 {[%clk 0:00:27.7]}
44... Ke6 {[%clk 0:00:19.2]} 45. Bf4 {[%clk 0:00:28]} 45... Kd7 {[%clk
0:00:18.3]} 46. Kc5 {[%clk 0:00:28.1]} 46... Be6 {[%clk 0:00:17.2]} 47. Kb6
{[%clk 0:00:26.6]} 47... Kc8 {[%clk 0:00:14.9]} 48. c5 {[%clk 0:00:27.1]} 48...
Bd7 {[%clk 0:00:14.6]} 49. Be3 {[%clk 0:00:25.9]} 49... Bc6 {[%clk 0:00:14.7]}
50. Bf4 {[%clk 0:00:26.1]} 50... Bd7 {[%clk 0:00:15]} 51. Ka5 {[%clk 0:00:25.9]}
51... Bc6 {[%clk 0:00:15.1]} 52. a4 {[%clk 0:00:26.5]} 52... Bd5 {[%clk
0:00:13]} 53. b5 {[%clk 0:00:26.9]} 53... axb5 {[%clk 0:00:12.8]} 54. axb5
{[%clk 0:00:27.8]} 54... Kd7 {[%clk 0:00:12.1]} 55. Kb6 {[%clk 0:00:28.2]} 55...
Bc4 {[%clk 0:00:10]} 56. c6+ {[%clk 0:00:28.1]} 56... bxc6 {[%clk 0:00:10.9]}
57. bxc6+ {[%clk 0:00:29]} 57... Ke6 {[%clk 0:00:08.1]} 58. c7 {[%clk
0:00:24.1]} 58... Kd7 {[%clk 0:00:07.9]} 59. Kb7 {[%clk 0:00:24.3]} 1-0